Cogmind - Beta 10.2 @@@ ROGUE MODE // 2020.12.12 @ 14:57:40 Player: Demise Result: Destroyed by G-47 Trooper with Particle Gun Performance ------------- Evolutions (2) 1000 Regions Visited (8) 1600 Robots Destroyed (75) 375 Value Destroyed (1464) 1464 Prototype IDs (40) 800 Alien Tech Used (0) 0 Bonus (602) 602 TOTAL SCORE: 5841 Bonus ------- Follower Combat Kills 102 Entered Garrisons 200 Aligned with FarCom 300 Cogmind --------- Core Integrity 0/550 Matter 285/300 Energy 24/100 System Corruption 5% Temperature Cool (9) Movement Core (800) Ox15 Location -8/Garrison Parts ------- > --- POWER (1) -------- (None) > --- PROPULSION (2) --- (None) > --- UTILITY (6) ------ Large Storage Unit Large Storage Unit Large Storage Unit Gravity Neutralizing Apparatus Hacking Suite > --- WEAPON (2) ------- (None) > --- INVENTORY (22) --- Large Storage Unit Improved Sensor Array Experimental Sensor Array Makeshift Terrain Scanner Improved Target Analyzer Improved Armor Integrity Analyzer Advanced Transmission Jammer Light Armor Plating Light Armor Plating Hardened Light Armor Plating Hardened Light Armor Plating Hardened Light Armor Plating 8R-AWN's Armor/EX EX Chip 1 EX Chip 2 Skeleton Box Supersonic Drone Bay (1/1) Chronowheel Mining Laser Deploy-a-Sentry Peak State ------------ > --- POWER ------------ Cold Fusion Reactor > --- PROPULSION ------- Advanced Myomer Leg Advanced Myomer Leg > --- UTILITY ---------- Large Storage Unit Large Storage Unit Large Storage Unit Large Storage Unit > --- WEAPON ----------- Heavy Assault Rifle 8R-AWN's Boregun > --- INVENTORY -------- Makeshift Power Source Armored Wheel Armored Wheel Armored Wheel Armored Wheel Gravity Neutralizing Apparatus Improved Sensor Array Experimental Sensor Array Makeshift Terrain Scanner Improved Target Analyzer Improved Armor Integrity Analyzer Advanced Transmission Jammer Light Armor Plating Light Armor Plating 8R-AWN's Armor/EX EX Chip 1 EX Chip 1 EX Chip 2 Skeleton Box Supersonic Drone Bay Chronowheel Light Assault Rifle Light Assault Rifle Mini Grenade Launcher Mining Laser Deploy-a-Sentry [Rating: 49] Favorites ----------- Power Ion Engine Engine Ion Engine Power Core Reinforced Fission Core Reactor Cold Fusion Reactor Propulsion Light Treads Treads Light Treads Leg Advanced Myomer Leg Wheel Armored Wheel Utility Large Storage Unit Device Sensor Array Storage Large Storage Unit Hackware Hacking Suite Protection Light Armor Plating Weapon Heavy Assault Rifle Energy Gun Small Laser Energy Cannon Beam Cannon Ballistic Gun Heavy Assault Rifle Ballistic Cannon Improved Light Cannon Launcher Mini Grenade Launcher Build | -11 -10 -10 -9 -9 -9 -8 -8 -8 ------- Run | Scr Mat Min Mat Min Exi Min Mat Gar Slots Evolved 4 | . . . 2 . . . 2 . Power . | . . . . . . . . . Propulsion . | . . . . . . . . . Utility 4 | . . . 2 . . . 2 . Weapon . | . . . . . . . . . Parts Attached 115 | . 33 . 8 8 34 9 8 15 Power 15 | . 3 . 2 1 6 1 1 1 Engine 12 | . 3 . 2 1 3 1 1 1 Core 2 | . . . . . 2 . . . Reactor 1 | . . . . . 1 . . . Propulsion 26 | . 11 . . 1 8 . 2 4 Treads 12 | . 9 . . . 2 . 1 . Leg 4 | . . . . . 3 . . 1 Wheel 10 | . 2 . . 1 3 . 1 3 Hover . | . . . . . . . . . Flight . | . . . . . . . . . Utility 26 | . 7 . 2 1 11 . 3 2 Device 7 | . 4 . . . 2 . . 1 Storage 8 | . 3 . 1 . 3 . . 1 Processor . | . . . . . . . . . Hackware 3 | . . . . . . . 3 . Protection 8 | . . . 1 1 6 . . . Artifact . | . . . . . . . . . Weapon 48 | . 12 . 4 5 9 8 2 8 Energy Gun 5 | . 5 . . . . . . . Energy Cannon 5 | . 2 . . . . . . 3 Ballistic Gun 26 | . 4 . 2 2 7 5 1 5 Ballistic Cannon 3 | . 1 . 1 1 . . . . Launcher 9 | . . . 1 2 2 3 1 . Special Weapon . | . . . . . . . . . Impact Weapon . | . . . . . . . . . Slashing Weapon . | . . . . . . . . . Piercing Weapon . | . . . . . . . . . Special Melee Weapon . | . . . . . . . . . Unidentified Prototypes 6 | . . . . . 6 . . . Parts Lost 38 | . 4 . . 4 9 6 4 11 Power 5 | . . . . . 2 2 . 1 Propulsion 11 | . 1 . . 1 2 1 1 5 Utility 5 | . . . . 1 3 . . 1 Weapon 17 | . 3 . . 2 2 3 3 4 Highest Loss Streak 11 | . 2 . . 4 6 3 4 11 Average Slot Usage (%) 96 | . 96 100 97 98 98 97 82 82 Engine 8 | . 14 14 11 11 4 1 9 . Reactor 1 | . . . . . 3 8 . . Treads 16 | . 25 28 22 13 13 . 3 7 Leg 2 | . . . . . 1 21 6 . Wheel 3 | . 1 . . 8 6 . 3 7 Storage 32 | . 23 28 33 33 36 44 36 35 Hackware 1 | . . . . . . . 17 16 Protection 3 | . . . 8 11 5 . . . Energy Gun 1 | . 5 . . . . . . . Energy Cannon 3 | . 14 . . . . . . 6 Ballistic Gun 16 | . 6 28 13 18 21 19 8 7 Ballistic Cannon 1 | . . . 6 2 . . . . Naked Turns . | . . . . . . . . . Heaviest Build 85 | 12 43 43 63 63 85 85 70 76 Greatest Support 60 | 20 40 40 40 40 60 60 30 30 Greatest Overweight (x) 21 | . 2 1 1 5 6 2 5 21 Average Overweight (x) 2 | . . 1 1 3 3 1 2 3 Largest Inventory Capacity 28 | 6 16 16 22 22 28 28 28 28 Average Capacity 20 | 6 12 16 22 22 24 28 28 27 Most Carried 28 | 6 16 16 22 22 28 28 28 28 Average Carried 19 | 6 11 15 19 20 22 27 27 26 Final Capacity 28 | 6 16 16 22 22 28 28 28 22 Final Carried 28 | 6 16 16 22 22 28 28 26 21 Class Distribution -------------------- 64% | Hauler-Mutant 27% | Mutant 7% | Commander-Mutant Dominant Class ---------------- Mutant | -10/Materials Commander-Mutant | -10/Mines Hauler-Mutant | -9/Materials Hauler-Mutant | -9/Mines Hauler-Mutant | -9/Exiles Hauler-Mutant | -8/Mines Hauler-Mutant | -8/Materials Hauler-Mutant | -8/Garrison Resources | -11 -10 -10 -9 -9 -9 -8 -8 -8 ----------- Run | Scr Mat Min Mat Min Exi Min Mat Gar Matter Collected 2672 | 200 409 132 118 233 685 548 . 347 Remotely . | . . . . . . . . . Salvage Created 2512 | 64 705 101 153 172 501 403 . 413 Parts 177 | 5 37 16 15 17 53 27 . 7 Haulers Intercepted 2 | . 2 . . . . . . . Recyclers Shooed 4 | . 2 . . 2 . . . . Parts Field Recycled . | . . . . . . . . . Retrieved Matter . | . . . . . . . . . Parts Self-Destructed . | . . . . . . . . . Prevented . | . . . . . . . . . Kills | -11 -10 -10 -9 -9 -9 -8 -8 -8 ------- Run | Scr Mat Min Mat Min Exi Min Mat Gar Combat Hostiles Destroyed 60 | . 17 2 4 19 1 14 . 3 Melee 1 | . . . . . . . . 1 Guns 22 | . 7 2 . 4 1 6 . 2 Cannons 13 | . 10 . 1 2 . . . . AOE 24 | . . . 3 13 . 8 . . Classes Destroyed 14 | 2 4 1 2 2 2 1 . . Worker 5 | . 2 . 1 2 . . . . Builder 3 | . . 1 . 2 . . . . Tunneler 4 | 1 . 3 . . . . . . Hauler 2 | . 2 . . . . . . . Recycler 4 | 1 2 . . . . 1 . . Turret 1 | . . . . . 1 . . . Watcher 1 | . . . 1 . . . . . Swarmer 20 | . 6 2 1 3 . 8 . . Grunt 20 | . 11 . 2 . . 5 . 2 Sentry 1 | . . . 1 . . . . . Demolisher 1 | . . . . 1 . . . . Hunter 2 | . . . . . . 1 . 1 Zionite 8 | . . . . . 8 . . . Assembled 15 | . . . . 15 . . . . Best Kill Streak 15 | 2 4 2 4 15 3 5 . 2 Combat Bots Only 15 | . 4 2 3 15 1 4 . 2 Max Kills in Single Turn 4 | 1 1 2 2 4 1 3 . 1 Gunslinging 1 | . . 1 . . . . . . Exploded 4 | . . . 2 4 . 3 . . Melee 1 | . . . . . . . . 1 Uniques/NPCs Destroyed 4 | . . . . . 4 . . . 8R-AWN (-9/Exiles) EX-HEX (-9/Exiles) EX-DEC (-9/Exiles) EX-BIN (-9/Exiles) Combat | -11 -10 -10 -9 -9 -9 -8 -8 -8 -------- Run | Scr Mat Min Mat Min Exi Min Mat Gar Damage Taken 6440 | . 705 35 35 1007 1112 1258 441 1847 Core 984 | . 88 18 10 56 102 154 52 504 Absorbed by Shields 150 | . . . . . . . . 150 Core Remaining (%) 58 | 100 . 57 . . . 19 . . Volleys Fired 338 | 7 87 9 7 32 104 46 4 42 Largest 2 | 2 2 2 2 2 2 2 2 2 Hottest 150 | 70 120 46 59 59 46 53 50 150 Shots Fired 602 | 14 172 18 12 55 195 76 7 53 Gun 497 | 14 125 18 5 38 184 70 6 37 Cannon 80 | . 47 . 5 12 . . . 16 Launcher 25 | . . . 2 5 11 6 1 . Special . | . . . . . . . . . Kinetic 471 | 7 89 18 10 50 184 70 6 37 Thermal 106 | 7 83 . . . . . . 16 Explosive 25 | . . . 2 5 11 6 1 . Electromagnetic . | . . . . . . . . . Robot Hit Streak 20 | 2 20 4 7 3 12 7 5 14 Robot Miss Streak 4 | 3 3 2 2 3 4 3 2 3 Penetration Max . | . . . . . . . . . Secondary Targets 6 | . 2 1 . . 1 2 . . Max Gunslinging Chain 1 | . 1 1 . . 1 1 . . Shots Hit Robots 367 | 7 114 10 8 28 124 38 5 33 Core Hits 167 | 3 31 6 8 39 39 24 4 13 Critical Hits 19 | . 1 1 . 2 1 5 . 9 Critical Kills 6 | . . 1 . 1 . 1 . 3 Critical Parts Destroyed 13 | . 1 . . 1 1 4 . 6 Melee Attacks . | . . . . . . . . . Impact . | . . . . . . . . . Slashing . | . . . . . . . . . Piercing . | . . . . . . . . . Sneak Attacks . | . . . . . . . . . Combat Hostiles . | . . . . . . . . . Follow-up Attacks . | . . . . . . . . . Damage Inflicted 7136 | 69 1191 188 288 1309 2230 1154 144 563 Guns 3781 | 69 735 188 34 277 1796 375 20 287 Cannons 821 | . 456 . 59 81 . . . 225 Explosions 2406 | . . . 195 938 399 750 124 . Melee . | . . . . . . . . . Ramming 128 | . . . . 13 35 29 . 51 Kinetic 3710 | 19 574 188 93 358 1796 375 20 287 Thermal 892 | 50 617 . . . . . . 225 Explosive 2406 | . . . 195 938 399 750 124 . Electromagnetic . | . . . . . . . . . Impact . | . . . . . . . . . Slashing . | . . . . . . . . . Piercing . | . . . . . . . . . Highest Corruption 5 | . . . . . . 1 . 5 Average Corruption 4 | . . . . . . 1 . 5 Corruption Purged . | . . . . . . . . . Overload Shots . | . . . . . . . . . Overflow Damage 104 | . 13 . . 47 34 10 . . Projectiles 13 | . 13 . . . . . . . Explosions 91 | . . . . 47 34 10 . . Melee . | . . . . . . . . . Knockbacks 11 | . 9 . . 1 . 1 . . Impact 1 | . . . . . . 1 . . Kinetic 7 | . 6 . . 1 . . . . Secondary 3 | . 3 . . . . . . . Self-Inflicted Damage 122 | . . . . 12 16 43 35 16 Shots 5 | . . . . 2 . 2 1 . Rammed 17 | . . . . 2 4 2 . 9 Targets Rammed 19 | . . . . 2 4 4 . 9 Kicked 2 | . . . . . . 2 . . Crushed . | . . . . . . . . . Highest Temperature 246 | 110 246 . 45 92 84 21 24 171 Average Temperature 48 | 54 72 . 18 27 25 6 8 63 Received Heat Transfer 1959 | . 222 . 21 249 27 450 216 774 Siege Activations . | . . . . . . . . . Robots Corrupted . | . . . . . . . . . Combat Hostiles . | . . . . . . . . . Parts Fried . | . . . . . . . . . Impact Corruptions . | . . . . . . . . . Robots Melted . | . . . . . . . . . Combat Hostiles . | . . . . . . . . . Parts Melted 2 | . 2 . . . . . . . Heat Transferred 1923 | 148 1442 . . . . . . 333 Parts Sabotaged . | . . . . . . . . . Parts Stolen . | . . . . . . . . . Parts Stripped . | . . . . . . . . . Power Chain Reactions . | . . . . . . . . . Missiles Intercepted . | . . . . . . . . . Alert | -11 -10 -10 -9 -9 -9 -8 -8 -8 ------- Run | Scr Mat Min Mat Min Exi Min Mat Gar Peak Influence 351 | 10 351 204 140 101 . 263 78 201 Initial 59 | . 6 37 21 26 . . 59 31 Average 108 | 3 154 72 65 58 . 165 63 97 Maximum Alert Level 1 | . 1 1 . . . 1 . 1 Low Security (%) 87 | 100 68 99 100 100 . 84 100 97 Level 1 12 | . 31 . . . . 15 . 2 Level 2 . | . . . . . . . . . Level 3 . | . . . . . . . . . Level 4 . | . . . . . . . . . Level 5 . | . . . . . . . . . High Security . | . . . . . . . . . Max Security . | . . . . . . . . . Squads Dispatched 7 | . 4 . 2 . . 1 . . Investigation 4 | . 3 . 1 . . . . . Extermination . | . . . . . . . . . Reinforcement 3 | . 1 . 1 . . 1 . . Assault . | . . . . . . . . . Garrison . | . . . . . . . . . Intercept . | . . . . . . . . . Construction Impeded 1 | . . . . . . 1 . . Haulers Reinforced . | . . . . . . . . . Stealth | -11 -10 -10 -9 -9 -9 -8 -8 -8 --------- Run | Scr Mat Min Mat Min Exi Min Mat Gar Distress Signals 6 | . 1 . 5 . . . . . Communications Jammed . | . . . . . . . . . Distress Signals . | . . . . . . . . . Times Spotted 147 | . 35 8 8 26 35 23 3 9 Peak Tracking Total 11 | . 6 3 4 11 11 7 3 8 Tactical Retreats 10 | . . . . . 8 2 . . Traps | -11 -10 -10 -9 -9 -9 -8 -8 -8 ------- Run | Scr Mat Min Mat Min Exi Min Mat Gar Traps Triggered 4 | . 2 . . . . . . 2 Indirectly . | . . . . . . . . . Trap Hack Attempts . | . . . . . . . . . Triggered . | . . . . . . . . . Disarmed . | . . . . . . . . . Reprogrammed . | . . . . . . . . . Reused . | . . . . . . . . . Traps Extracted . | . . . . . . . . . Installed . | . . . . . . . . . Triggered . | . . . . . . . . . Exploded 3 | . . . . . 3 . . . Machines | -11 -10 -10 -9 -9 -9 -8 -8 -8 ---------- Run | Scr Mat Min Mat Min Exi Min Mat Gar Machines Disabled 15 | . 2 . 1 4 6 . 1 1 Max in Single Turn 2 | . 1 . 1 2 1 . 1 1 Machines Sabotaged . | . . . . . . . . . Garrisons Compromised . | . . . . . . . . . Overloaded Fab Kills . | . . . . . . . . . Fab Network Shutdowns . | . . . . . . . . . Hacking | -11 -10 -10 -9 -9 -9 -8 -8 -8 --------- Run | Scr Mat Min Mat Min Exi Min Mat Gar Machines Accessed 22 | . 10 . 7 . 2 . 3 . Terminals 14 | . 7 . 5 . . . 2 . Fabricators . | . . . . . . . . . Repair Stations 1 | . 1 . . . . . . . Recycling Units 3 | . 2 . 1 . . . . . Scanalyzers 1 | . . . 1 . . . . . Garrison Access 1 | . . . . . . . 1 . Total Hacks 100 | . 34 . 30 . 24 . 12 . Successful 85 | . 30 . 24 . 24 . 7 . Failed 13 | . 3 . 5 . . . 5 . Catastrophic 1 | . . . . . . . 1 . Database Lockouts 2 | . 1 . 1 . . . . . Manual 48 | . 18 . 20 . 1 . 9 . Terminals 59 | . 23 . 25 . . . 11 . Fabricators . | . . . . . . . . . Repair Stations 6 | . 6 . . . . . . . Recycling Units 8 | . 5 . 3 . . . . . Scanalyzers 2 | . . . 2 . . . . . Garrison Access 1 | . . . . . . . 1 . Terminal Hacks 49 | . 11 . 12 . 24 . 2 . Record 23 | . . . . . 23 . . . Part Schematic 1 | . 1 . . . . . . . Robot Analysis 2 | . 1 . 1 . . . . . Prototype ID Bank 6 | . 2 . 3 . . . 1 . Level Access Points 1 | . . . 1 . . . . . Branch Access Points 2 | . 1 . 1 . . . . . Emergency Access Points 1 | . 1 . . . . . . . Locate Traps 3 | . 1 . 1 . . . 1 . Recall Investigation 1 | . . . 1 . . . . . Recall Reinforcements 2 | . . . 2 . . . . . Hauler Manifests 2 | . 1 . 1 . . . . . Registered Prototypes 1 | . 1 . . . . . . . Zone Layout 3 | . 2 . 1 . . . . . EX-Prototype ID Bank 1 | . . . . . 1 . . . Fabricator Hacks . | . . . . . . . . . Repair Station Hacks 6 | . 6 . . . . . . . Scan Component 3 | . 3 . . . . . . . Repair 3 | . 3 . . . . . . . Recycling Unit Hacks 5 | . 3 . 2 . . . . . Report Inventory 3 | . 2 . 1 . . . . . Retrieve Components 2 | . 1 . 1 . . . . . Scanalyzer 2 | . . . 2 . . . . . Insert Component 1 | . . . 1 . . . . . Analyze 1 | . . . 1 . . . . . Garrison Access Hacks 1 | . . . . . . . 1 . Unlock Access 1 | . . . . . . . 1 . Unauthorized Hacks 22 | . 10 . 8 . . . 4 . Terminals 19 | . 8 . 7 . . . 4 . Track 5 | . 2 . 2 . . . 1 . Assimilate 1 | . 1 . . . . . . . Botnet 10 | . 4 . 4 . . . 2 . Operators 3 | . 1 . 1 . . . 1 . Fabricators . | . . . . . . . . . Repair Stations . | . . . . . . . . . Recycling Units 3 | . 2 . 1 . . . . . Tunnel 3 | . 2 . 1 . . . . . Scanalyzers . | . . . . . . . . . Garrison Access . | . . . . . . . . . Data Cores Recovered . | . . . . . . . . . Used . | . . . . . . . . . Hacking Detections 16 | . 8 . 6 . . . 2 . Full Trace Events 2 | . 1 . 1 . . . . . Feedback Events . | . . . . . . . . . Feedback Blocked . | . . . . . . . . . Robot Schematics Acquired . | . . . . . . . . . Robots Built . | . . . . . . . . . Matter . | . . . . . . . . . Time . | . . . . . . . . . Total Robot Build Rating . | . . . . . . . . . Part Schematics Acquired 2 | . 1 . 1 . . . . . Parts Built . | . . . . . . . . . Matter . | . . . . . . . . . Time . | . . . . . . . . . Total Part Build Rating . | . . . . . . . . . Parts Repaired 3 | . 3 . . . . . . . Time 78 | . 78 . . . . . . . Parts Recycled . | . . . . . . . . . Recycled Matter . | . . . . . . . . . Retrieved Matter . | . . . . . . . . . Retrieved Components 11 | . 2 . 9 . . . . . Parts Scanalyzed 1 | . . . 1 . . . . . Part Schematics Acquired 1 | . . . 1 . . . . . Parts Damaged . | . . . . . . . . . Bothacking | -11 -10 -10 -9 -9 -9 -8 -8 -8 ------------ Run | Scr Mat Min Mat Min Exi Min Mat Gar Used RIF Installer . | . . . . . . . . . Robots Hacked . | . . . . . . . . . Non-combat . | . . . . . . . . . Combat . | . . . . . . . . . Robot Hacks Applied . | . . . . . . . . . Relay Couplers Released . | . . . . . . . . . Robots Rewired . | . . . . . . . . . Allies Hacked . | . . . . . . . . . Hacks Repelled . | . . . . . . . . . Allies | -11 -10 -10 -9 -9 -9 -8 -8 -8 -------- Run | Scr Mat Min Mat Min Exi Min Mat Gar Total Allies 6 | . 1 3 . 2 . . . . Largest Group 4 | . 1 4 3 2 1 . . . Highest-Rated Group 50 | . 10 50 34 47 31 . . . Highest-Rated Ally 31 | . 10 16 16 31 31 . . . Total Orders 2 | . . . 2 . . . . . STAY 1 | . . . 1 . . . . . FOLLOW 1 | . . . 1 . . . . . Ally Attacks 26 | . . 19 1 6 . . . . Total Damage 282 | . . 203 14 65 . . . . Kills 8 | . . 6 1 1 . . . . Allies Corrupted . | . . . . . . . . . Allies Melted . | . . . . . . . . . Intel | -11 -10 -10 -9 -9 -9 -8 -8 -8 ------- Run | Scr Mat Min Mat Min Exi Min Mat Gar Robot Analysis Total 2 | . 1 . 1 . . . . . Derelict Logs Recovered 3 | . . 2 . 1 . . . . Drone Launches . | . . . . . . . . . Drone Recoveries . | . . . . . . . . . Exploration | -11 -10 -10 -9 -9 -9 -8 -8 -8 ------------- Run | Scr Mat Min Mat Min Exi Min Mat Gar Turns Passed 7164 | 20 1641 741 605 803 2153 527 187 487 Spaces Moved 3531 | 1 724 388 309 509 1078 262 97 163 Core 12 | . . . . . . . . 12 Treads 1969 | . 669 388 309 75 406 . 3 119 Legs 445 | 1 5 . . . 110 262 63 4 Wheels 1105 | . 50 . . 434 562 . 31 28 Hover . | . . . . . . . . . Flight . | . . . . . . . . . Fastest Speed 90 | 120 90 180 180 130 110 150 140 110 Average Speed 163 | 120 166 180 180 138 157 150 167 212 Slowest Speed 1100 | 120 200 180 180 220 220 180 200 1100 Overloaded Moves . | . . . . . . . . . Propulsion Burnouts . | . . . . . . . . . Robots Hopped . | . . . . . . . . . Cave-ins Triggered . | . . . . . . . . . Exploration Rate (%) 58 | 1 98 97 35 98 91 49 14 41 Regions Visited 8 Branch Regions 4 Pre-discovered Areas 5 | . 2 . 1 1 1 . . . Known Exits Taken 4 | . 1 . 1 . . 1 1 . Unknown Exits Taken 4 | 1 . 1 . 1 1 . . . Scrap Searched 2 | . . 1 . 1 . . . . Spaces Dug . | . . . . . . . . . Terrain Destroyed 102 | . . . 6 33 . 55 7 1 Melee . | . . . . . . . . . Projectile 6 | . . . . 2 . 3 . 1 AOE 96 | . . . 6 31 . 52 7 . Terrain Rammed . | . . . . . . . . . Walls Destroyed . | . . . . . . . . . Machines Disabled . | . . . . . . . . . Actions | -11 -10 -10 -9 -9 -9 -8 -8 -8 --------- Run | Scr Mat Min Mat Min Exi Min Mat Gar Total 4368 | 7 1007 414 350 556 1352 321 113 248 Wait 196 | . 100 12 1 2 68 . 1 12 Move 3524 | . 723 387 308 508 1077 261 97 163 Hop . | . . . . . . . . . Pick Up 88 | . 30 3 16 3 32 1 3 . Fast Attach 31 | . 16 . 1 1 7 2 1 3 Attach 48 | . 7 . 2 4 20 1 5 9 Detach 14 | . 2 . . 1 8 . . 3 Swap 36 | . 10 . 5 3 7 6 2 3 Drop 71 | . 32 3 10 . 25 . . 1 Fire 338 | 7 87 9 7 32 104 46 4 42 Melee . | . . . . . . . . . Ram 12 | . . . . 2 4 . . 6 Kick 4 | . . . . . . 4 . . Crush 3 | . . . . . . . . 3 Escape Stasis 3 | . . . . . . . . 3 Rewire . | . . . . . . . . . Trap . | . . . . . . . . . Miscellaneous . | . . . . . . . . . Route ------- -11/Scrapyard -10/Materials (discovered 5 exits: *Mat x3 / *Min x2) -10/Mines (discovered 2 exits: *Mat x2) -9/Materials (discovered 5 exits: Mat x3 / *Min x2) -9/Mines (discovered 3 exits: *Mat x2 / *Exi) -9/Exiles (discovered 2 exits: [*Min x2]) -8/Mines (discovered 2 exits: *Mat x2) -8/Materials -8/Garrison History --------- Turn | Location | Event 21 | -11/Scrapyard | Discovered new exit (range 0) 21 | -11/Scrapyard | Entered Materials 330 | -10/Materials | Build established: Mutant 645 | -10/Materials | Discovered new exit (range 10) 758 | -10/Materials | Discovered new exit (range 16) 770 | -10/Materials | Central database locked down 810 | -10/Materials | Discovered new exit (range 9) 1258 | -10/Materials | Identified exit to Mines 1355 | -10/Materials | Discovered new exit (range 10) 1559 | -10/Materials | Repaired Lgt. Treads 1587 | -10/Materials | Repaired Lgt. Treads 1614 | -10/Materials | Repaired Ion Engine 1662 | -10/Materials | Entered Mines 1662 | -10/Mines | Accompanied by 1 ally 1684 | -10/Mines | Learned Materials security intel 1756 | -10/Mines | Assisted by bots powering up and referring to "LRC-V3" 1891 | -10/Mines | Learned Materials interactive machine intel 2054 | -10/Mines | Build established: Commander-Mutant 2130 | -10/Mines | Received a Rocket Launcher from a helpful Derelict 2148 | -10/Mines | Discovered new exit (range 9) 2349 | -10/Mines | Discovered new exit (range 5) 2403 | -10/Mines | Entered Materials 2403 | -9/Materials | Accompanied by 3 allies 2403 | -9/Materials | Evolved 2 slots: Utility x2 2405 | -9/Materials | Loaded intel: 18 interactive machine locations 2608 | -9/Materials | Central database locked down 2696 | -9/Materials | Build established: Hauler-Mutant 2775 | -9/Materials | Discovered new exit (range 16) 2828 | -9/Materials | Identified exit to Materials 2828 | -9/Materials | Identified exit to Mines 3008 | -9/Materials | Entered Mines 3008 | -9/Mines | Accompanied by 1 ally 3112 | -9/Mines | Assembled infested the area 3117 | -9/Mines | Assisted by a Guerilla fighting off Assembled 3171 | -9/Mines | Destroyed 15 combat bots 3247 | -9/Mines | Lost 4 parts (1n1u2w) 3323 | -9/Mines | Learned Materials garrison access intel 3334 | -9/Mines | Found a damaged Exp. Sensor Array with a note attached 3337 | -9/Mines | Found Prototype Device 3397 | -9/Mines | Deemed a non-threat by the Exiles lab entrance 3397 | -9/Mines | Discovered new exit (range 5) 3533 | -9/Mines | Discovered exit to Materials (range 7) 3606 | -9/Mines | Discovered exit to Materials (range 5) 3675 | -9/Mines | Learned location of Storage (-7) 3811 | -9/Mines | Entered Exiles 3811 | -9/Exiles | Accompanied by 1 ally 3841 | -9/Exiles | Led the pair of lost Derelicts to a safe place 3844 | -9/Exiles | Met 8R-AWN 3866 | -9/Exiles | Met EX-HEX 3923 | -9/Exiles | Met EX-DEC 3944 | -9/Exiles | Learned location of Zion (-7) 4031 | -9/Exiles | Met EX-BIN 4050 | -9/Exiles | Aligned with FarCom system 4052 | -9/Exiles | Given EX-Vault access code 4084 | -9/Exiles | Opened EX-Vault 4091 | -9/Exiles | Found Skeleton Box 4095 | -9/Exiles | Found Chronowheel 4100 | -9/Exiles | Found Supersonic Drone Bay 4130 | -9/Exiles | Warned to stay clear of 0b10 Research branches 4373 | -9/Exiles | Discovered new exit (range 14) 4430 | -9/Exiles | Attacked by the Exiles 4594 | -9/Exiles | Lost 6 parts (2p1n1u2w) 4656 | -9/Exiles | Destroyed 8R-AWN 4664 | -9/Exiles | Found Prototype Ballistic Gun 4668 | -9/Exiles | Found Prototype Device 4670 | -9/Exiles | Found Prototype Protection 4672 | -9/Exiles | Lost 3 parts (1n2u) 5112 | -9/Exiles | Destroyed EX-HEX 5159 | -9/Exiles | Destroyed EX-DEC 5242 | -9/Exiles | Destroyed EX-BIN 5276 | -9/Exiles | Identified AS-neutralizer No. 17b 5691 | -9/Exiles | Found Deploy-a-Sentry 5702 | -9/Exiles | Identified 8R-AWN's Boregun 5943 | -9/Exiles | Discovered new exit (range 15) 5964 | -9/Exiles | Stole four prototypes: Skeleton Box, Supersonic Drone Bay, Chronowheel, Deploy-a-Sentry 5964 | -9/Exiles | Entered Mines 6014 | -8/Mines | Core integrity fell below 50% 6188 | -8/Mines | Discovered exit to Materials (range 10) 6436 | -8/Mines | Discovered exit to Materials (range 10) 6491 | -8/Mines | Core integrity fell below 20% 6491 | -8/Mines | Entered Materials 6491 | -8/Materials | Evolved 2 slots: Utility x2 6492 | -8/Materials | Loaded intel: 1 garrison access location 6517 | -8/Materials | Lost 3 parts (1p1n1w) 6678 | -8/Materials | Identified exit to Garrison 6678 | -8/Materials | Entered Garrison 6687 | -8/Garrison | Triggered checkpoint 6704 | -8/Garrison | Lost 4 parts (1n3w) 6900 | -8/Garrison | Triggered checkpoint 7071 | -8/Garrison | Triggered checkpoint 7099 | -8/Garrison | Triggered checkpoint 7123 | -8/Garrison | Core integrity fell below 50% 7148 | -8/Garrison | Core integrity fell below 20% 7165 | -8/Garrison | Destroyed by G-47 Trooper with Particle Gun Last Messages --------------- 07110_ Acquired 6 matter. 07111_ HV Slug penetrates G-47 Trooper. 07111_ HV Slug penetrates Reinforced Barrier. 07112_ Acquired 6 matter. 07113_ HV Slug penetrates Wall. 07114_ Acquired 4 matter. 07114_ Arm. Wheel destroyed. 07115_ HV Slug penetrates Reinforced Barrier. 07117_ HV Slug penetrates Wall. 07117_ HV Slug penetrates Reinforced Barrier. 07118_ 8R-AWN's Boregun destroyed. 07119_ Acquired 7 matter. 07119_ Triggered Stasis Trap. 07119_ A bubble of rippling energy engulfs the area. 07119_ Field strength at 94. 07130_ Field strength at 9. 07131_ Stasis field depleted. 07138_ Adv. Myomer Leg destroyed. 07139_ Mak. Power Source destroyed. 07139_ Dropped Lrg. Storage Unit. Map ----- +----------------------------------------------------+ | ###??????????????????????????????????????????????? | | #??????????????????????????????????????????????? | | #??????????????????????????????????????????????? | | #??????????????????????????????????????????????? | | #??????????????????????????????????????????????? | | #??????????????????????????????????????????????? | | #??????????????????????????????????????????????? | | #??????????????????????????????????????????????? | | #??????????????????????????????????????????????? | | #??????????????????????????????????????????????? | | #??????????????????????????????????????????????? | | #??????????????????????????????????????????????? | | ###????????????????????????????????????????????? | | ^^ #########????????????????????????????????????? | | " ##]]#????????????????????????????????????? | | %### ##]]#????????????????????????????????????? | | ###?# ## ]#????????????????????????????????????? | | #???# ## ]#????????????????????????????????????? | | #???# #????????????????????????????????????? | | #???#=##!!#????????????????????????????????????? | | #???# #####????????????????????????????????????? | | #???# #????????????????????????????????????????? | | #???# #????????????????????????????????????????? | | ##### ######??????############# ####???????????? | | " #??????# g ????????? | | # #??????# gl@ ????????? | | ######### #??????# g######### #??????????????? | | #???????# #??????# #?????????????????????????? | | #???????# #??????# #?????????????????????????? | | #???????# #??????# #?????????????????????????? | | #???????# ######## #?????????????????????????? | | #???????# =## ## #?????????????????????????? | | ####+####+%## ## ##????????????????????????? | | !%%%%" ####?????????????????????? | | *=!^ " ! #??????????????? | | ^^ #??????????????? | | ########## ## ## ###########??????????????? | | ?????????# ## ## #????????????????????????? | | ???????? "????????????????????????? | | ???????# "????????????????????????? | | ???????# "????????????????????????? | | ???????# "????????????????????????? | | ???????### ## ## #????????????????????????? | | ?????????# ## #? #????????????????????????? | | ????????? ? ? ????????????????????????? | | ???????? ? ? ???????????????????????? | | ????????## ##???????????????????????? | | ?????????######""""######????????????????????????? | | ?????????????????????????????????????????????????? | | ?????????????????????????????????????????????????? | +----------------------------------------------------+ Best States ------------- Heat Dissipation 35 Energy Generation 19 Energy Capacity 310 Matter Stores 300 Matter Capacity 300 Sight Range 16 Robot Scan Range 10 Terrain Scan Density 10 Additional Mass Support 12 Armor Coverage 300 Evasion (%) 42 Recoil Reduction 2 Offensive Hacking 10 Defensive Hacking 7 Item Schematics ----------------- Hcp. Storage Unit | -10/Materials | Hacked Imp. Sensor Array | -9/Materials | Scanalyzed Robot Schematics ------------------ None Fabricated ------------ Nothing Alien Tech Used ----------------- None Achievements -------------- None Challenges ------------ None Game ------ Seed TrackerDecoderCompressor Manual? 0 Play Time 01:00:48 Cumulative 108.9 hours Start 2020.12.12 @ 14:01:04 End 2020.12.12 @ 14:57:40 Sessions 1 Manual Loads 0 Difficulty Rogue Special Mode None Game No. 100 Rogue 100 Adventurer 0 Explorer 0 Win Type - Total 0 Types 0/0/0/0/0/0/0/0/0 Lore% 48 Gallery% 57 Achievement% 52 Wizard Run 0 Options --------- ASCII 0 Keyboard 1 Movement Numpad Keybinds 0 Fullscreen 1 Font 12/Terminus Map View 83x54 Tactical HUD 1 Map Filters NONE Filters NONE Steam 1 RUN: 026a9675-30b3-48ae-90c5-e2ba385fa337